[Event "Championship of RSO-Alania 2020"]
[Site "Vladikavkaz, Russia"]
[Date "2021.01.03"]
[Round "3.5"]
[White "Tsamalaidze, Liana"]
[Black "Dzhibilov, David"]
[Result "1-0"]
[TimeControl "90+30"]
[WhiteElo "1446"]
[BlackElo "1363"]

1. d4 {[%clk 01:30:59]} {[%emt 00:00:01]} e6 {[%clk 01:30:59]} {[%emt
00:00:01]} 2. c4 {[%clk 01:31:22]} {[%emt 00:00:07]} Nf6 {[%clk 01:31:20]}
{[%emt 00:00:08]} 3. Nc3 {[%clk 01:31:48]} {[%emt 00:00:04]} Bb4 {[%clk
01:31:05]} {[%emt 00:00:45]} 4. Qc2 {[%clk 01:32:09]} {[%emt 00:00:09]} c5
{[%clk 01:31:11]} {[%emt 00:00:24]} 5. e3 {[%clk 01:31:33]} {[%emt 00:01:06]}
O-O {[%clk 01:31:08]} {[%emt 00:00:34]} 6. a3 {[%clk 01:31:57]} {[%emt
00:00:06]} Bxc3+ {[%clk 01:31:26]} {[%emt 00:00:11]} 7. Qxc3 {[%clk 01:32:22]}
{[%emt 00:00:05]} d6 {[%clk 01:28:54]} {[%emt 00:03:03]} 8. Nf3 {[%clk
01:32:19]} {[%emt 00:00:33]} Nbd7 {[%clk 01:28:41]} {[%emt 00:00:42]} 9. Bd3
{[%clk 01:31:59]} {[%emt 00:00:49]} b6 {[%clk 01:28:34]} {[%emt 00:00:38]} 10.
O-O {[%clk 01:30:03]} {[%emt 00:02:25]} Bb7 {[%clk 01:29:03]} 11. Be2 {[%clk
01:30:27]} {[%emt 00:00:08]} Re8 {[%clk 01:21:11]} {[%emt 00:08:22]} 12. b4
{[%clk 01:27:47]} {[%emt 00:03:09]} Rc8 {[%clk 01:17:48]} {[%emt 00:03:53]} 13.
Bb2 {[%clk 01:23:52]} {[%emt 00:04:25]} Ne4 {[%clk 01:17:10]} {[%emt 00:01:07]}
14. Qb3 {[%clk 01:22:47]} {[%emt 00:01:35]} Ng5 {[%clk 01:16:46]} {[%emt
00:00:54]} 15. d5 {[%clk 01:20:58]} {[%emt 00:02:20]} exd5 {[%clk 01:11:57]}
{[%emt 00:05:20]} 16. cxd5 {[%clk 01:21:21]} {[%emt 00:00:06]} Nxf3+ {[%clk
01:11:39]} {[%emt 00:00:48]} 17. Bxf3 {[%clk 01:21:38]} {[%emt 00:00:14]} Ne5
{[%clk 01:12:00]} {[%emt 00:00:08]} 18. Be2 {[%clk 01:19:18]} {[%emt 00:02:50]}
c4 {[%clk 01:11:25]} {[%emt 00:01:06]} 19. Qc3 {[%clk 01:19:42]} {[%emt
00:00:06]} f6 {[%clk 01:03:24]} {[%emt 00:08:32]} 20. f4 {[%clk 01:19:00]}
{[%emt 00:01:12]} Nf7 {[%clk 01:01:50]} {[%emt 00:02:03]} 21. Rad1 {[%clk
01:17:41]} {[%emt 00:01:49]} Qe7 {[%clk 01:01:05]} {[%emt 00:01:15]} 22. Rf3
{[%clk 01:17:21]} {[%emt 00:00:50]} Nh6 {[%clk 01:00:00]} {[%emt 00:01:36]} 23.
Rh3 {[%clk 01:15:47]} {[%emt 00:02:04]} Nf5 {[%clk 00:51:39]} {[%emt 00:08:50]}
24. Kf2 {[%clk 01:08:56]} {[%emt 00:07:22]} Qe4 {[%clk 00:51:49]} {[%emt
00:00:20]} 25. g4 {[%clk 01:09:11]} {[%emt 00:00:14]} Nh6 {[%clk 00:44:24]}
{[%emt 00:07:55]} 26. g5 {[%clk 00:51:08]} {[%emt 00:19:04]} Nf5 {[%clk
00:45:21]} {[%emt 00:00:02]} 27. gxf6 {[%clk 00:50:37]} {[%emt 00:01:02]} Rc7
{[%clk 00:39:09]} {[%emt 00:06:42]} 28. Bh5 {[%clk 00:43:38]} {[%emt 00:07:28]}
Rf8 {[%clk 00:30:52]} {[%emt 00:08:48]} 29. Bf3 {[%clk 00:43:14]} {[%emt
00:00:54]} Qxe3+ {[%clk 00:25:40]} {[%emt 00:05:42]} 30. Qxe3 {[%clk 00:43:28]}
{[%emt 00:00:16]} Nxe3 {[%clk 00:26:03]} {[%emt 00:00:07]} 31. Kxe3 {[%clk
00:43:51]} {[%emt 00:00:06]} c3 {[%clk 00:26:32]} {[%emt 00:00:01]} 32. Bc1
{[%clk 00:39:21]} {[%emt 00:05:01]} Rxf6 {[%clk 00:26:25]} {[%emt 00:00:37]} 33.
Bg4 {[%clk 00:38:10]} {[%emt 00:01:41]} Ba6 {[%clk 00:25:33]} {[%emt 00:01:22]}
34. Be6+ {[%clk 00:37:36]} {[%emt 00:01:04]} Kh8 {[%clk 00:25:27]} {[%emt
00:00:36]} 35. Rg3 {[%clk 00:34:50]} {[%emt 00:03:16]} Rh6 {[%clk 00:25:03]}
{[%emt 00:00:55]} 36. h3 {[%clk 00:35:11]} {[%emt 00:00:09]} g6 {[%clk
00:22:38]} {[%emt 00:02:54]} 37. f5 {[%clk 00:34:14]} {[%emt 00:01:28]} Kg7
{[%clk 00:20:08]} {[%emt 00:02:59]} 38. a4 {[%clk 00:33:42]} {[%emt 00:01:03]}
Kf6 {[%clk 00:18:37]} {[%emt 00:02:00]} 39. b5 {[%clk 00:33:49]} {[%emt
00:00:24]} Bb7 {[%clk 00:19:01]} {[%emt 00:00:06]} 40. Kd4 {[%clk 00:34:04]}
{[%emt 00:00:14]} Rh4+ {[%clk 00:19:17]} {[%emt 00:00:15]} 41. Kd3 {[%clk
00:34:26]} {[%emt 00:00:08]} Rcc4 {[%clk 00:17:36]} {[%emt 00:02:11]} 42. Bg5+
{[%clk 00:34:40]} {[%emt 00:00:15]} 1-0

[Event "Championship of RSO-Alania 2020"]
[Site "Vladikavkaz, Russia"]
[Date "2021.01.03"]
[Round "3.6"]
[White "Edziev, Vladimir"]
[Black "Ryazanov, Nikolay"]
[Result "1/2-1/2"]
[TimeControl "90+30"]
[WhiteElo "1478"]
[BlackElo "1788"]

1. d4 {[%clk 01:30:58]} {[%emt 00:00:01]} Nf6 {[%clk 01:30:47]} {[%emt
00:00:13]} 2. Nf3 {[%clk 01:31:24]} {[%emt 00:00:04]} e6 {[%clk 01:31:03]}
{[%emt 00:00:14]} 3. c4 {[%clk 01:31:49]} {[%emt 00:00:05]} Bb4+ {[%clk
01:31:25]} {[%emt 00:00:07]} 4. Nc3 {[%clk 01:32:02]} {[%emt 00:00:18]} O-O
{[%clk 01:31:44]} {[%emt 00:00:11]} 5. Bg5 {[%clk 01:31:43]} {[%emt 00:00:49]}
h6 {[%clk 01:31:37]} {[%emt 00:00:37]} 6. Bh4 {[%clk 01:31:52]} {[%emt
00:00:22]} d5 {[%clk 01:31:53]} {[%emt 00:00:14]} 7. e3 {[%clk 01:32:14]}
{[%emt 00:00:08]} b6 {[%clk 01:31:51]} {[%emt 00:00:33]} 8. cxd5 {[%clk
01:32:08]} {[%emt 00:00:35]} exd5 {[%clk 01:32:14]} {[%emt 00:00:06]} 9. Bd3
{[%clk 01:32:31]} {[%emt 00:00:07]} Bb7 {[%clk 01:31:02]} {[%emt 00:01:42]} 10.
Rc1 {[%clk 01:32:38]} {[%emt 00:00:22]} Nbd7 {[%clk 01:31:14]} {[%emt
00:00:18]} 11. O-O {[%clk 01:32:48]} {[%emt 00:00:20]} Re8 {[%clk 01:31:28]}
{[%emt 00:00:16]} 12. Qa4 {[%clk 01:31:51]} {[%emt 00:01:28]} Bxc3 {[%clk
01:30:33]} {[%emt 00:01:26]} 13. Rxc3 {[%clk 01:32:07]} {[%emt 00:00:14]} c6
{[%clk 01:28:10]} {[%emt 00:02:52]} 14. Ba6 {[%clk 01:31:23]} {[%emt 00:01:15]}
Qc8 {[%clk 01:28:08]} {[%emt 00:00:33]} 15. Bxb7 {[%clk 01:31:48]} {[%emt
00:00:05]} Qxb7 {[%clk 01:28:30]} {[%emt 00:00:08]} 16. Qxc6 {[%clk 01:31:10]}
{[%emt 00:01:07]} Qxc6 {[%clk 01:28:54]} {[%emt 00:00:06]} 17. Rxc6 {[%clk
01:31:37]} {[%emt 00:00:03]} Rac8 {[%clk 01:29:07]} {[%emt 00:00:17]} 18. Rfc1
{[%clk 01:32:02]} {[%emt 00:00:05]} Rxc6 {[%clk 01:29:25]} {[%emt 00:00:13]} 19.
Rxc6 {[%clk 01:32:30]} {[%emt 00:00:01]} Re6 {[%clk 01:29:21]} {[%emt
00:00:34]} 20. Rxe6 {[%clk 01:32:52]} {[%emt 00:00:08]} fxe6 {[%clk 01:29:49]}
{[%emt 00:00:02]} 21. Bxf6 {[%clk 01:33:00]} {[%emt 00:00:22]} gxf6 {[%clk
01:30:07]} {[%emt 00:00:11]} 22. Kf1 {[%clk 01:33:13]} {[%emt 00:00:17]} Kf7
{[%clk 01:30:27]} {[%emt 00:00:10]} 23. Ke2 {[%clk 01:33:42]} {[%emt 00:00:02]}
Ke7 {[%clk 01:30:43]} {[%emt 00:00:14]} 24. Kd3 {[%clk 01:34:04]} {[%emt
00:00:07]} Kd6 {[%clk 01:31:10]} {[%emt 00:00:03]} 25. e4 {[%clk 01:33:04]}
{[%emt 00:01:29]} dxe4+ {[%clk 01:31:33]} {[%emt 00:00:08]} 26. Kxe4 {[%clk
01:33:32]} {[%emt 00:00:02]} Nb8 {[%clk 01:31:19]} {[%emt 00:00:43]} 27. Nd2
{[%clk 01:32:23]} {[%emt 00:01:38]} Nc6 {[%clk 01:31:39]} {[%emt 00:00:11]} 28.
Nc4+ {[%clk 01:32:38]} {[%emt 00:00:16]} Kd7 {[%clk 01:31:54]} {[%emt
00:00:15]} 29. d5 {[%clk 01:32:47]} {[%emt 00:00:21]} Nb4 {[%clk 01:32:04]}
{[%emt 00:00:18]} 30. dxe6+ {[%clk 01:33:12]} {[%emt 00:00:06]} Kxe6 {[%clk
01:32:25]} {[%emt 00:00:10]} 31. a3 {[%clk 01:33:35]} {[%emt 00:00:07]} Nd5
{[%clk 01:32:34]} {[%emt 00:00:20]} 32. Ne3 {[%clk 01:33:50]} {[%emt 00:00:15]}
Ne7 {[%clk 01:32:44]} {[%emt 00:00:20]} 33. b4 {[%clk 01:34:05]} {[%emt
00:00:15]} a6 {[%clk 01:33:00]} {[%emt 00:00:14]} 34. h4 {[%clk 01:34:26]}
{[%emt 00:00:09]} f5+ {[%clk 01:33:10]} {[%emt 00:00:19]} 35. Kd4 {[%clk
01:34:45]} {[%emt 00:00:11]} Nc6+ {[%clk 01:33:35]} {[%emt 00:00:06]} 36. Kd3
{[%clk 01:35:07]} {[%emt 00:00:08]} Ne5+ {[%clk 01:33:54]} {[%emt 00:00:10]} 37.
Kd4 {[%clk 01:35:31]} {[%emt 00:00:06]} Nc6+ {[%clk 01:34:20]} {[%emt
00:00:04]} 38. Kd3 {[%clk 01:35:44]} {[%emt 00:00:17]} Ne5+ {[%clk 01:34:48]}
{[%emt 00:00:01]} 39. Kd4 {[%clk 01:36:10]} {[%emt 00:00:05]} Nc6+ {[%clk
01:35:14]} {[%emt 00:00:04]} 40. Kd3 {[%clk 01:36:37]} {[%emt 00:00:03]} Ne5+
{[%clk 01:35:18]} {[%emt 00:00:26]} 41. Kd4 {[%clk 01:37:06]} {[%emt 00:00:02]}
Nc6+ {[%clk 01:35:46]} 42. Ke4 {[%emt 00:00:06]} Ke5+ 43. Nd1+ {[%clk
01:36:14]} {[%emt 00:01:01]} 1/2-1/2

[Event "Championship of RSO-Alania 2020"]
[Site "Vladikavkaz, Russia"]
[Date "2021.01.04"]
[Round "4.1"]
[White "Bogov, Khetag"]
[Black "Dryaeva, Lana"]
[Result "1-0"]
[TimeControl "90+30"]
[WhiteElo "1263"]
[BlackElo "1404"]

1. Nf3 {[%clk 01:30:57]} {[%emt 00:00:02]} c5 {[%clk 01:30:52]} {[%emt
00:00:09]} 2. e4 {[%clk 01:31:11]} {[%emt 00:00:16]} Nc6 {[%clk 01:31:16]}
{[%emt 00:00:06]} 3. Bb5 {[%clk 01:31:20]} {[%emt 00:00:20]} d6 {[%clk
01:31:17]} {[%emt 00:00:30]} 4. h3 {[%clk 01:31:27]} {[%emt 00:00:23]} Nf6
{[%clk 01:31:40]} {[%emt 00:00:08]} 5. d3 {[%clk 01:31:43]} {[%emt 00:00:13]}
e5 {[%clk 01:29:19]} {[%emt 00:02:51]} 6. c3 {[%clk 01:31:45]} {[%emt
00:00:28]} a6 {[%clk 01:29:12]} {[%emt 00:00:39]} 7. Ba4 {[%clk 01:31:58]}
{[%emt 00:00:16]} b5 {[%clk 01:29:33]} {[%emt 00:00:09]} 8. Bc2 {[%clk
01:32:23]} {[%emt 00:00:05]} Be7 {[%clk 01:29:45]} {[%emt 00:00:18]} 9. O-O
{[%clk 01:31:57]} {[%emt 00:00:54]} O-O {[%clk 01:30:06]} {[%emt 00:00:10]} 10.
Nbd2 {[%clk 01:31:58]} {[%emt 00:00:29]} Ne8 {[%clk 01:30:24]} {[%emt
00:00:13]} 11. a4 {[%clk 01:30:54]} {[%emt 00:01:33]} b4 {[%clk 01:29:52]}
{[%emt 00:01:03]} 12. Re1 {[%clk 01:29:20]} {[%emt 00:02:03]} Qc7 {[%clk
01:30:11]} {[%emt 00:00:12]} 13. Nf1 {[%clk 01:28:59]} {[%emt 00:00:50]} bxc3
{[%clk 01:25:01]} {[%emt 00:05:41]} 14. bxc3 {[%clk 01:29:23]} {[%emt
00:00:06]} Nd8 {[%clk 01:25:25]} {[%emt 00:00:06]} 15. Ne3 {[%clk 01:29:23]}
{[%emt 00:00:28]} Be6 {[%clk 01:24:39]} {[%emt 00:01:17]} 16. Bb3 {[%clk
01:28:54]} {[%emt 00:00:59]} Bf6 {[%clk 01:15:54]} {[%emt 00:09:16]} 17. Bd5
{[%clk 01:26:36]} {[%emt 00:02:48]} Ra7 {[%clk 01:11:32]} {[%emt 00:04:52]} 18.
Qb3 {[%clk 01:24:49]} {[%emt 00:02:17]} Qd7 {[%clk 00:47:20]} {[%emt 00:24:42]}
19. Kh2 {[%clk 01:22:17]} {[%emt 00:03:02]} Rb7 {[%clk 00:43:47]} {[%emt
00:04:04]} 20. Qc2 {[%clk 01:20:48]} {[%emt 00:01:57]} Bxd5 {[%clk 00:39:50]}
{[%emt 00:04:28]} 21. Nxd5 {[%clk 01:21:00]} {[%emt 00:00:18]} Ne6 {[%clk
00:36:57]} {[%emt 00:03:23]} 22. a5 {[%clk 01:16:33]} {[%emt 00:04:58]} N8c7
{[%clk 00:27:12]} {[%emt 00:10:15]} 23. Nb6 {[%clk 01:16:23]} {[%emt 00:00:39]}
Qc6 {[%clk 00:25:57]} {[%emt 00:01:46]} 24. c4 {[%clk 01:14:45]} {[%emt
00:02:08]} Bd8 {[%clk 00:12:33]} {[%emt 00:13:55]} 25. Bd2 {[%clk 01:14:01]}
{[%emt 00:01:14]} Ne8 {[%clk 00:09:26]} {[%emt 00:03:37]} 26. Nd5 {[%clk
01:13:45]} {[%emt 00:00:45]} g6 {[%clk 00:09:02]} {[%emt 00:00:55]} 27. Reb1
{[%clk 01:13:24]} {[%emt 00:00:50]} f5 {[%clk 00:04:43]} {[%emt 00:04:50]} 28.
Rxb7 {[%clk 01:13:30]} {[%emt 00:00:25]} Qxb7 {[%clk 00:05:12]} {[%emt
00:00:01]} 29. Rb1 {[%clk 01:13:40]} {[%emt 00:00:19]} Qd7 {[%clk 00:04:57]}
{[%emt 00:00:45]} 30. exf5 {[%clk 01:12:00]} {[%emt 00:02:10]} gxf5 {[%clk
00:04:24]} {[%emt 00:01:03]} 31. Bc3 {[%clk 01:11:25]} {[%emt 00:01:04]} Rf7
{[%clk 00:00:41]} {[%emt 00:04:13]} 32. Rb8 {[%clk 01:11:13]} {[%emt 00:00:43]}
Rg7 {[%clk 00:00:57]} {[%emt 00:00:14]} 33. Ne3 {[%clk 01:09:29]} {[%emt
00:02:14]} Qf7 {[%clk 00:01:05]} {[%emt 00:00:22]} 34. Ne1 {[%clk 01:08:30]}
{[%emt 00:01:30]} h5 {[%clk 00:01:10]} {[%emt 00:00:26]} 35. Nd5 {[%clk
01:08:45]} {[%emt 00:00:15]} N8c7 {[%clk 00:00:34]} {[%emt 00:01:06]} 36. Qb2
{[%clk 01:08:03]} {[%emt 00:01:12]} Kh7 {[%clk 00:00:58]} {[%emt 00:00:05]} 37.
Qb7 {[%clk 01:07:25]} {[%emt 00:01:08]} f4 {[%clk 00:01:05]} {[%emt 00:00:24]}
38. Nxc7 {[%clk 01:06:43]} {[%emt 00:01:13]} Bxc7 {[%clk 00:01:28]} {[%emt
00:00:06]} 39. Qe4+ {[%clk 01:06:46]} {[%emt 00:00:26]} Rg6 {[%clk 00:01:39]}
{[%emt 00:00:19]} 40. Rb7 {[%clk 01:06:52]} {[%emt 00:00:24]} Ng5 {[%clk
00:01:08]} {[%emt 00:01:01]} 41. Qd5 {[%clk 01:06:51]} {[%emt 00:00:31]} Qe7
{[%clk 00:00:34]} {[%emt 00:01:04]} 42. Nf3 {[%clk 01:06:21]} {[%emt 00:01:00]}
Ne6 {[%clk 00:00:33]} {[%emt 00:00:31]} 43. Ra7 {[%clk 01:05:44]} {[%emt
00:01:07]} Qg7 {[%clk 00:00:32]} {[%emt 00:00:31]} 44. Qe4 {[%clk 01:04:50]}
{[%emt 00:01:24]} Kg8 {[%clk 00:00:36]} {[%emt 00:00:26]} 45. Nh4 {[%clk
01:04:48]} {[%emt 00:00:32]} Rf6 {[%clk 00:00:46]} {[%emt 00:00:20]} 46. Ra8+
{[%clk 01:02:53]} {[%emt 00:02:24]} Bd8 {[%clk 00:00:37]} {[%emt 00:00:40]} 47.
Nf5 {[%clk 01:02:59]} {[%emt 00:00:24]} Qd7 {[%clk 00:00:53]} {[%emt 00:00:14]}
48. Nh4 {[%emt 00:02:46]} Kg7 {[%emt 00:00:50]} 49. Rxa6 {[%emt 00:01:20]} Ng5
{[%emt 00:00:13]} 50. Qc6 {[%emt 00:00:18]} Qe6 {[%emt 00:00:40]} 51. Nf3
{[%emt 00:00:41]} Nxf3+ {[%emt 00:00:26]} 52. Qxf3 {[%emt 00:00:10]} Bxa5
{[%emt 00:00:03]} 53. Rxa5 {[%emt 00:00:24]} Qf5 {[%emt 00:00:22]} 54. Ra7+
{[%emt 00:00:11]} Kg6 {[%emt 00:00:49]} 55. Qd5 {[%emt 00:01:06]} Kg5 {[%emt
00:00:14]} 56. Qg8+ {[%emt 00:00:27]} Rg6 {[%emt 00:00:10]} 57. Rg7 {[%emt
00:00:42]} Rxg7 {[%emt 00:00:04]} 58. Qxg7+ {[%emt 00:00:09]} Qg6 {[%emt
00:00:02]} 59. h4+ {[%emt 00:00:45]} Kf5 {[%emt 00:00:04]} 60. Qxg6+ {[%emt
00:00:25]} Kxg6 61. Kh3 {[%emt 00:00:20]} Kf5 {[%emt 00:00:24]} 62. f3 {[%emt
00:00:23]} Ke6 {[%emt 00:00:07]} 63. g4 {[%emt 00:00:23]} fxg3 {[%emt
00:00:11]} 64. Kxg3 {[%clk 01:02:48]} {[%emt 00:00:21]} d5 {[%clk 00:03:11]}
{[%emt 00:01:20]} 65. cxd5+ {[%clk 01:02:59]} {[%emt 00:00:19]} Kxd5 {[%clk
00:03:40]} {[%emt 00:00:01]} 66. f4 {[%clk 01:03:16]} {[%emt 00:00:13]} e4
{[%clk 00:03:50]} {[%emt 00:00:20]} 67. dxe4+ {[%clk 01:03:34]} {[%emt
00:00:11]} Kxe4 {[%clk 00:04:18]} {[%emt 00:00:02]} 68. Ba1 {[%clk 01:03:57]}
{[%emt 00:00:07]} c4 {[%clk 00:04:25]} {[%emt 00:00:23]} 69. Bb2 {[%clk
01:04:24]} {[%emt 00:00:03]} Kf5 {[%clk 00:03:55]} {[%emt 00:01:00]} 70. Kf3
{[%clk 01:04:49]} {[%emt 00:00:04]} Kg6 {[%clk 00:04:10]} {[%emt 00:00:15]} 71.
Ke4 {[%clk 01:05:13]} {[%emt 00:00:06]} Kh7 {[%clk 00:03:58]} {[%emt 00:00:43]}
72. f5 {[%clk 01:05:34]} {[%emt 00:00:09]} c3 {[%clk 00:03:56]} {[%emt
00:00:33]} 73. Bxc3 {[%clk 01:05:58]} {[%emt 00:00:05]} Kg8 {[%clk 00:04:00]}
{[%emt 00:00:26]} 74. Ke5 {[%clk 01:06:21]} {[%emt 00:00:06]} Kf7 {[%clk
00:03:34]} {[%emt 00:00:56]} 75. f6 {[%clk 01:06:38]} {[%emt 00:00:13]} Kg8
{[%clk 00:02:22]} {[%emt 00:01:42]} 76. Ke6 {[%clk 01:07:02]} {[%emt 00:00:06]}
Kh7 {[%clk 00:02:30]} {[%emt 00:00:23]} 77. f7 {[%clk 01:07:24]} {[%emt
00:00:07]} Kg6 {[%clk 00:02:56]} {[%emt 00:00:04]} 1-0

[Event "Championship of RSO-Alania 2020"]
[Site "Vladikavkaz, Russia"]
[Date "2021.01.04"]
[Round "4.2"]
[White "Hastsaev, Marat"]
[Black "Agkatsev, Albert A"]
[Result "1-0"]
[TimeControl "90+30"]
[WhiteElo "2007"]
[BlackElo "1550"]

1. e4 {[%clk 01:30:58]} {[%emt 00:00:02]} e6 {[%clk 01:30:54]} {[%emt
00:00:07]} 2. d4 {[%clk 01:31:23]} {[%emt 00:00:04]} d5 {[%clk 01:31:20]}
{[%emt 00:00:04]} 3. exd5 {[%clk 01:31:49]} {[%emt 00:00:04]} exd5 {[%clk
01:31:46]} {[%emt 00:00:04]} 4. Nf3 {[%clk 01:32:15]} {[%emt 00:00:03]} Nf6
{[%clk 01:32:11]} {[%emt 00:00:05]} 5. Bd3 {[%clk 01:32:38]} {[%emt 00:00:07]}
Bd6 {[%clk 01:32:36]} {[%emt 00:00:05]} 6. O-O {[%clk 01:33:05]} {[%emt
00:00:03]} O-O {[%clk 01:32:55]} {[%emt 00:00:11]} 7. Bg5 {[%clk 01:33:23]}
{[%emt 00:00:12]} h6 {[%clk 01:33:16]} {[%emt 00:00:10]} 8. Bh4 {[%clk
01:33:48]} {[%emt 00:00:04]} Bg4 {[%clk 01:33:39]} {[%emt 00:00:07]} 9. Nbd2
{[%clk 01:33:47]} {[%emt 00:00:32]} Nbd7 {[%clk 01:33:49]} {[%emt 00:00:20]} 10.
Re1 {[%clk 01:32:58]} {[%emt 00:01:19]} c6 {[%clk 01:31:07]} {[%emt 00:03:12]}
11. Nf1 {[%clk 01:27:47]} {[%emt 00:05:41]} Qc7 {[%clk 01:29:09]} {[%emt
00:02:27]} 12. h3 {[%clk 01:20:00]} {[%emt 00:08:16]} Bh5 {[%clk 01:28:58]}
{[%emt 00:00:41]} 13. Ng3 {[%clk 01:15:21]} {[%emt 00:05:10]} Bxf3 {[%clk
01:27:26]} {[%emt 00:02:02]} 14. Qxf3 {[%clk 01:15:27]} {[%emt 00:00:24]} g5
{[%clk 01:21:21]} {[%emt 00:06:34]} 15. Nh5 {[%clk 01:14:33]} {[%emt 00:01:25]}
Qd8 {[%clk 01:21:09]} {[%emt 00:00:42]} 16. Bg3 {[%clk 01:13:20]} {[%emt
00:01:43]} Bxg3 {[%clk 01:19:39]} {[%emt 00:01:59]} 17. Nxg3 {[%clk 01:13:10]}
{[%emt 00:00:40]} Re8 {[%clk 01:18:08]} {[%emt 00:02:01]} 18. Nf5 {[%clk
01:06:30]} {[%emt 00:07:09]} Rxe1+ {[%clk 01:18:23]} {[%emt 00:00:16]} 19. Rxe1
{[%clk 01:06:57]} {[%emt 00:00:03]} Qf8 {[%clk 01:18:48]} {[%emt 00:00:05]} 20.
h4 {[%clk 01:06:49]} {[%emt 00:00:38]} Nh7 {[%clk 01:08:17]} {[%emt 00:11:01]}
21. Qh5 {[%clk 00:54:54]} {[%emt 00:12:25]} Ndf6 {[%clk 01:08:23]} {[%emt
00:00:25]} 22. Nxh6+ {[%clk 00:54:31]} {[%emt 00:00:52]} Kg7 {[%clk 01:08:39]}
{[%emt 00:00:12]} 23. Nf5+ {[%clk 00:53:09]} {[%emt 00:01:55]} Kh8 {[%clk
01:08:56]} {[%emt 00:00:12]} 24. Qf3 {[%clk 00:50:39]} {[%emt 00:03:00]} Re8
{[%clk 01:04:46]} {[%emt 00:04:40]} 25. Rxe8 {[%clk 00:48:55]} {[%emt
00:02:13]} Qxe8 {[%clk 01:05:11]} {[%emt 00:00:06]} 26. hxg5 {[%clk 00:42:21]}
{[%emt 00:07:05]} Nxg5 {[%clk 01:03:19]} {[%emt 00:02:22]} 27. Qg3 {[%clk
00:37:54]} {[%emt 00:04:57]} Qe1+ {[%clk 00:58:49]} {[%emt 00:05:00]} 28. Kh2
{[%clk 00:38:05]} {[%emt 00:00:18]} Qd2 {[%clk 00:58:26]} {[%emt 00:00:53]} 29.
Nd6 {[%clk 00:28:52]} {[%emt 00:09:45]} Qb4 {[%clk 00:55:58]} {[%emt 00:02:58]}
30. c3 {[%clk 00:28:39]} {[%emt 00:00:43]} Ng4+ {[%clk 00:54:43]} {[%emt
00:01:45]} 31. Kg1 {[%clk 00:28:07]} {[%emt 00:01:02]} Qxb2 {[%clk 00:54:12]}
{[%emt 00:01:01]} 32. Qh4+ {[%clk 00:27:17]} {[%emt 00:01:19]} Kg7 {[%clk
00:54:15]} {[%emt 00:00:25]} 33. Qxg5+ {[%clk 00:27:40]} {[%emt 00:00:09]} Kf8
{[%clk 00:54:38]} {[%emt 00:00:07]} 34. Qxg4 {[%clk 00:27:04]} {[%emt
00:01:06]} Qc1+ {[%clk 00:55:01]} {[%emt 00:00:08]} 35. Bf1 {[%emt 00:01:00]}
1-0